fUSD/lending_fUSD_20240330
["ID","MTS","AMOUNT","RATE_DAILY","PERIOD"]
[321016184,1711771837793,-362.69102512,0.0002666,2]
[321016185,1711771837830,-2444.18100484,0.0002666,2]
[321016186,1711771837987,-31635.22304311,0.0002666,2]
[321016187,1711771837996,-2000.0,0.00026663,2]
[321016188,1711771838006,-276.0,0.00026665,2]
[321016189,1711771838016,-150.0,0.00026665,2]
[321016190,1711771838025,-8615.03687435,0.00026666,2]
[321016191,1711771838035,-1406.79524522,0.00026669,2]
[321016192,1711771838044,-1097.16822668,0.00026669,2]
[321016193,1711771838053,-499.99,0.00026676,2]
[321016194,1711771838063,-251.38176324,0.00026728,2]
[321016195,1711771838073,-7130.8646,0.000269,2]
[321016196,1711771838082,-155.5902157,0.00026998,2]
[321016197,1711771838092,-219.21866921,0.00026998,2]
[321016198,1711771838102,-155.32463635,0.00026998,2]
[321016199,1711771838112,-155.33486608,0.00026998,2]
[321016200,1711771838122,-156.97624227,0.00026998,2]
[321016201,1711771838131,-150.99,0.00026998,2]
[321016202,1711771838141,-165.94374686,0.00026998,2]
[321016203,1711771838151,-155.16663132,0.00026998,2]
[321016204,1711771838160,-155.37410853,0.00026999,3]
[321016205,1711771838170,-1430.90663668,0.000275,2]
[321016206,1711771838179,-163.90240331,0.00028089,2]
[321016207,1711771838188,-210.0,0.00029332,2]
[321016208,1711771838198,-163.90240331,0.00029617,2]
[321016209,1711771838208,-170.76,0.00029688,2]
[321016210,1711771838218,-208.94537041,0.000299,2]
[321016211,1711771838227,-175.87,0.00029928,2]
[321016212,1711771838237,-407.12289685,0.0003,2]
[321016213,1711771838247,-15838.0470245,0.0003,2]
[321016214,1711771838256,-163.90240331,0.00031146,2]
[321016215,1711771838266,-5322.90588939,0.0003143,4]
[321016216,1711771838276,-402.84626132,0.00032232,3]
[321016217,1711771838287,-163.90240331,0.00032674,2]
[321016218,1711771838296,-570.2,0.00033882,2]
[321016219,1711771838308,-163.90240331,0.00034203,2]
[321016220,1711771838317,-8217.72886807,0.000348,4]
[321016221,1711771838326,-950.29685636,0.00035,30]
[321016222,1711771838335,-820.64,0.00035198,2]
[321016223,1711771838345,-250.0,0.00035552,2]
[321016224,1711771838354,-163.90240331,0.00035731,2]
[321016225,1711771838376,-171.24,0.00035975,2]
[321016226,1711771838387,-570.2,0.00036145,2]
[321016227,1711771838399,-170.66,0.00036544,15]
[321016228,1711771838409,-800.0,0.00036989,2]
[321016229,1711771838419,-1332.6,0.00037032,2]
[321016230,1711771838428,-495.24,0.00037067,2]
[321016231,1711771838437,-800.0,0.00037068,2]
[321016232,1711771838447,-23900.0,0.00037084,2]
[321016233,1711771838457,-200.0,0.00037093,2]
[321016234,1711771838467,-250.0,0.0003716,2]
[321016235,1711771838476,-163.90240331,0.0003726,2]
[321016236,1711771838486,-245.6,0.0003741,2]
[321016237,1711771838495,-157.98,0.00037746,2]
[321016238,1711771838504,-170.0,0.00037891,2]
[321016239,1711771838514,-570.2,0.00038409,2]
[321016240,1711771838523,-172.46,0.00038533,2]
[321016241,1711771838532,-163.90240331,0.00038788,2]
[321016242,1711771838541,-2202.96089554,0.0003897,2]
[321016243,1711771838551,-408.64,0.00039808,2]
[321016244,1711771838561,-559.76918549,0.00039838,4]
[321016245,1711771838570,-3218.7678841,0.0003999,2]
[321016246,1711771838580,-200.0,0.0003999,2]
[321016247,1711771838589,-414.91285024,0.0004,60]
[321016248,1711771838598,-570.2,0.00040673,2]
[321016249,1711771838607,-5028.0,0.0004095,2]
[321016250,1711771838617,-200.0,0.00041096,2]
[321016251,1711771838626,-200.0,0.00041096,2]
[321016252,1711771838636,-200.0,0.00041096,2]
[321016253,1711771838645,-156.898023,0.00041096,2]
[321016254,1711771838654,-200.0,0.00041096,2]
[321016255,1711771838663,-200.0,0.00041096,2]
[321016256,1711771838673,-200.0,0.00041096,2]
[321016257,1711771838682,-200.0,0.00041096,2]
[321016258,1711771838692,-200.0,0.00041096,2]
[321016259,1711771838701,-162.0,0.00041096,2]
[321016260,1711771838711,-180.0,0.00041096,2]
[321016261,1711771838720,-616.66519307,0.000412,7]
[321016262,1711771838730,-21948.4449,0.00041436,2]
[321016263,1711771838739,-679.5066,0.00041436,2]
[321016264,1711771838749,-2557.4822214,0.00041509,2]
[321016265,1711771838758,-272.14,0.00041526,30]
[321016266,1711771838768,-364.9285,0.00041536,2]
[321016267,1711771838778,-157.2231,0.00041536,2]
[321016268,1711771838788,-727.2416,0.00041536,3]
[321016269,1711771838802,-8768.8275,0.00041536,2]
[321016270,1711771838811,-205.0,0.00041536,2]
[321016271,1711771838821,-167.22205221,0.00041536,10]
[321016272,1711771838830,-2332.71987447,0.00041536,2]
[321016273,1711771838840,-173.29086929,0.00041536,10]
[321016274,1711771838850,-27311.38874633,0.00041536,2]
[321016275,1711771838859,-2557.48222137,0.00041541,2]
[321016276,1711771838872,-2557.48222137,0.00041573,2]
[321016277,1711771838881,-2557.48222137,0.00041604,2]
[321016278,1711771838891,-150.0,0.00041609,2]
[321016279,1711771838901,-800.0,0.00041613,2]
[321016280,1711771838912,-444.66,0.00041626,2]
[321016281,1711771838921,-444.66,0.00041626,2]
[321016282,1711771838931,-151.033013,0.00041628,22]
[321016283,1711771838941,-151.033013,0.00041629,23]
[321016284,1711771838950,-151.033013,0.0004163,24]
[321016285,1711771838960,-151.033013,0.00041631,25]
[321016286,1711771838970,-151.033013,0.00041632,26]
[321016287,1711771838979,-151.033013,0.00041633,27]
[321016288,1711771838990,-151.033013,0.00041634,28]
[321016289,1711771838999,-1000.0,0.00041636,2]
[321016290,1711771839009,-189.0,0.00041636,2]
[321016291,1711771839019,-903.0067,0.00041636,2]
[321016292,1711771839029,-39827.2204,0.00041636,2]
[321016293,1711771839039,-147271.3449,0.00041636,2]
[321016294,1711771839049,-100000.0,0.00041636,2]
[321016295,1711771839059,-2500.0,0.00041636,2]
[321016296,1711771839069,-2557.48222137,0.00041636,2]
[321016297,1711771839078,-800.0,0.000417,15]
[321016298,1711771839088,-1836.1521,0.00041713,4]
[321016299,1711771839098,-12839.06032946,0.00041724,4]
[321016300,1711771839108,-2358.97580479,0.00041725,4]
[321016301,1711771839118,-573.38,0.00041729,2]
[321016302,1711771839128,-200.0,0.0004173,2]
[321016303,1711771839137,-1000.0,0.00041736,2]
[321016304,1711771839148,-2098.935,0.00041736,2]
[321016305,1711771839158,-46761.3104,0.00041736,2]
[321016306,1711771839168,-500.0,0.00041736,2]
[321016307,1711771839438,-255.02787903,0.00041737,2]
[321016308,1711771839448,-1700.0,0.000418,15]
[321016309,1711771839458,-422.43842657,0.0004181,2]
[321016310,1711771839468,-444.66,0.0004181,2]
[321016311,1711771839478,-168.92247965,0.00041814,2]
[321016312,1711771839487,-106120.51644561,0.0004182,2]
[321016313,1711771839497,-444.66,0.00041826,2]
[321016314,1711771839507,-1532.0212,0.00041827,2]
[321016315,1711771839517,-956.37209737,0.00041833,2]
[321016316,1711771839526,-403.70298597,0.00041834,4]
[321016317,1711771839536,-1257.13815417,0.00041834,120]
[321016319,1711771839545,-243.77019218,0.00041834,4]
[321016320,1711771839554,-1770.55757467,0.00041835,4]
[321016321,1711771839564,-2299.3,0.00041835,2]
[321016322,1711771839573,-2299.3,0.00041835,2]
[321016323,1711771839582,-2299.3,0.00041835,2]
[321016324,1711771839592,-2299.3,0.00041835,2]
[321016325,1711771839601,-2299.3,0.00041835,2]
[321016326,1711771839610,-2299.3,0.00041835,2]
[321016327,1711771839619,-2299.3,0.00041835,2]
[321016328,1711771839629,-2299.3,0.00041835,2]
[321016329,1711771839638,-2299.3,0.00041835,2]
[321016330,1711771839647,-2299.3,0.00041835,2]
[321016331,1711771839657,-2299.3,0.00041835,2]
[321016332,1711771839666,-2299.3,0.00041835,2]
[321016333,1711771839675,-2299.3,0.00041835,2]
[321016334,1711771839685,-2299.3,0.00041835,2]
[321016335,1711771839694,-2299.3,0.00041835,2]
[321016336,1711771839705,-2299.3,0.00041835,2]
[321016337,1711771839714,-2299.3,0.00041835,2]
[321016338,1711771839723,-2299.3,0.00041835,2]
[321016339,1711771839733,-2299.3,0.00041835,2]
[321016341,1711771839742,-2299.3,0.00041835,2]
[321016343,1711771839751,-2299.3,0.00041835,2]
[321016344,1711771839760,-2299.3,0.00041835,2]
[321016345,1711771839769,-2299.3,0.00041835,2]
[321016346,1711771839779,-2299.46787897,0.00041835,2]
[321016347,1711771839789,-245000.0,0.00041836,2]
[321016348,1711771839798,-179.33218432,0.00041837,10]
[321016349,1711771839807,-174.46762,0.00041837,11]
[321016350,1711771839816,-14363.9334276,0.00041842,2]
[321016351,1711771839825,-249.6576452,0.00041842,2]
[321016352,1711771839835,-444.66,0.00041861,2]
[321016353,1711771839845,-21468.0311875,0.00041871,2]
[321016354,1711771839854,-2500.0,0.000419,15]
[321016355,1711771839863,-1570.49948379,0.00041907,16]
[321016356,1711771839873,-155.19141178,0.00041907,13]
[321016357,1711771839882,-1229.13475463,0.00041925,4]
[321016358,1711771839892,-1000.0,0.00041926,5]
[321016359,1711771839901,-444.66,0.00041935,2]
[321016360,1711771839910,-444.66,0.00041935,2]
[321016361,1711771839921,-156.15765495,0.00041935,4]
[321016362,1711771839930,-156.0506198,0.00041935,4]
[321016363,1711771839939,-2030.11966544,0.00041935,4]
[321016364,1711771839949,-26158.90002157,0.00041936,4]
[321016365,1711771839959,-1000.0,0.00041936,5]
[321016366,1711771839968,-13508.46,0.00041945,2]
[321016367,1711771839977,-13312.48752,0.00041945,2]
[321016368,1711771839986,-136485.88,0.00041945,2]
[321016369,1711771839996,-136398.5533333,0.00041945,2]
[321016370,1711771840006,-598.0598189,0.00041945,2]
[321016371,1711771840015,-2570.3112508,0.00041945,2]
[321016372,1711771840025,-136229.7806666,0.00041945,2]
[321016373,1711771840034,-444.66,0.0004199,2]
[321016374,1711771840043,-956.37209737,0.00041997,2]
[321016375,1711771840053,-250000.0,0.00042,7]
[321016376,1711771840062,-514.85561399,0.00042036,5]
[321016377,1711771840071,-444.66,0.00042177,2]
[321016378,1711771840081,-5687.0,0.00042187,2]
[321016379,1711771840090,-43018.0,0.00042187,2]
[321016380,1711771840101,-4777.0,0.00042187,2]
[321016381,1711771840111,-2481.239,0.00042187,2]
[321016382,1711771840120,-1177.0,0.00042187,2]
[321016383,1711771840130,-1048.0,0.00042187,2]
[321016384,1711771840139,-150.31488301,0.00042188,2]
[321016385,1711771840149,-422.43842657,0.00042196,2]
[321016386,1711771840158,-537.0,0.000422,29]
[321016387,1711771840169,-22258.21101915,0.00042206,2]
[321016388,1711771840178,-41998.49564547,0.00042206,2]
[321016389,1711771840188,-79510.28644317,0.00042206,7]
[321016390,1711771840198,-841.43315234,0.00042206,2]
[321016391,1711771840207,-1240.64379315,0.00042206,2]
[321016392,1711771840216,-444.66,0.00042227,2]
[321016393,1711771840226,-3558.0,0.0004223,30]
[321016394,1711771840235,-550.0,0.0004223,5]
[321016395,1711771840255,-495.8803803,0.0004223,4]
[321016396,1711771840267,-155.36694053,0.0004223,4]
[321016397,1711771840277,-5018.08151861,0.00042236,2]
[321016398,1711771840288,-205.89992937,0.00042236,2]
[321016399,1711771840298,-3361.23524628,0.00042237,4]
[321016400,1711771840312,-41312.02914183,0.00042237,2]
[321016401,1711771840321,-152.36,0.0004239,2]
[321016402,1711771840332,-152.36,0.00042443,2]
[321016403,1711771840343,-27311.38874632,0.00042465,2]
[321016404,1711771840353,-222.98,0.00042466,2]
[321016405,1711771840364,-2332.71987441,0.00042476,2]
[321016406,1711771840373,-152.36,0.00042496,2]
[321016407,1711771840383,-152.36,0.00042549,2]
[321016408,1711771840393,-152.36,0.00042602,2]
[321016409,1711771840402,-1570.49948369,0.00042895,17]
[321016410,1711771840412,-570.2,0.00042937,2]
[321016411,1711771840421,-255.02787902,0.00043053,2]
[321016412,1711771840431,-27311.38874632,0.00043395,2]
[321016413,1711771840441,-2332.71987441,0.00043417,2]
[321016414,1711771840450,-152.0,0.00043611,3]
[321016415,1711771840460,-162.0,0.00043625,7]
[321016416,1711771840469,-676.0,0.00043671,5]
[321016417,1711771840479,-155.19141178,0.00043851,21]
[321016418,1711771840488,-1570.49948369,0.00043883,18]
[321016419,1711771840498,-5598.19517036,0.00044,2]
[321016420,1711771840507,-179.33218432,0.00044151,11]
[321016421,1711771840517,-150.0,0.000443,8]
[321016422,1711771840526,-27311.38874632,0.00044324,2]
[321016423,1711771840536,-2332.71987441,0.00044357,2]
[321016424,1711771840545,-255.02787902,0.00044369,2]
[321016425,1711771840555,-150.5,0.00044757,15]
[321016426,1711771840564,-150.5,0.00044757,15]
[321016427,1711771840574,-150.5,0.00044767,15]
[321016428,1711771840583,-150.5,0.00044767,15]
[321016429,1711771840593,-160.63,0.00044767,15]
[321016430,1711771840603,-152.0,0.00044768,4]
[321016431,1711771840613,-150.5,0.00044777,15]
[321016432,1711771840623,-150.5,0.00044777,15]
[321016433,1711771840633,-150.5,0.00044777,15]
[321016434,1711771840643,-1383.0,0.00044787,2]
[321016435,1711771840653,-2423.0,0.00044787,2]
[321016436,1711771840662,-962.0,0.00044787,2]
[321016437,1711771840672,-458.0,0.00044787,2]
[321016438,1711771840681,-1254.0,0.00044787,2]
[321016439,1711771840691,-1226.0,0.00044787,2]
[321016440,1711771840700,-537.0,0.00044787,2]
[321016441,1711771840709,-433.0,0.00044787,2]
[321016442,1711771840719,-279.0,0.00044787,2]
[321016443,1711771840729,-605.0,0.00044787,2]
[321016444,1711771840738,-1268.0,0.00044787,2]
[321016445,1711771840747,-803.0,0.00044787,2]
[321016446,1711771840757,-1139.0,0.00044787,2]
[321016447,1711771840766,-2984.0,0.00044787,2]
[321016448,1711771840776,-396.0,0.00044787,2]
[321016449,1711771840786,-150.0,0.00044787,2]
[321016450,1711771840796,-2426.0,0.00044787,2]
[321016451,1711771840806,-1628.0,0.00044787,2]
[321016452,1711771840815,-150.0,0.00044787,2]
[321016453,1711771840825,-213.0,0.00044787,2]
[321016454,1711771840835,-236.734,0.00044787,2]
[321016455,1711771840845,-150.0,0.000448,8]
[321016456,1711771840854,-155.34840068,0.00044846,30]
[321016457,1711771840863,-1570.49948369,0.00044871,20]
[321016458,1711771840873,-686.26,0.00044948,2]
[321016459,1711771840883,-162.01674259,0.00044968,30]
[321016460,1711771840893,-832.0,0.00045161,5]
[321016461,1711771840903,-5687.0,0.00045187,2]
[321016462,1711771840913,-43018.0,0.00045187,2]
[321016463,1711771840923,-4777.0,0.00045187,2]
[321016464,1711771840934,-2452.0,0.00045187,2]
[321016465,1711771840944,-1177.0,0.00045187,2]
[321016466,1711771840954,-1048.0,0.00045187,2]
[321016467,1711771840964,-570.2,0.00045201,2]
[321016468,1711771840974,-27311.38874632,0.00045253,2]
[321016469,1711771840984,-2332.71987441,0.00045298,2]
[321016470,1711771840993,-150.0,0.000453,8]
[321016471,1711771841003,-150.0,0.000455,8]
[321016472,1711771841013,-162.01674259,0.000455,30]
[321016473,1711771841024,-156.1193036,0.00045604,30]
[321016474,1711771841034,-255.02787902,0.00045684,2]
[321016475,1711771841044,-158.39642554,0.00045784,30]
[321016476,1711771841053,-155.19141178,0.00045795,28]
[321016477,1711771841062,-150.0,0.000458,8]
[321016478,1711771841071,-160.54481556,0.00045822,30]
[321016479,1711771841082,-1570.49948369,0.00045859,21]
[321016480,1711771841092,-152.0,0.00045925,5]
[321016481,1711771841103,-156.1193036,0.00045979,30]
[321016482,1711771841112,-150.0,0.00046,8]
[321016483,1711771841122,-27311.38874632,0.00046183,2]
[321016484,1711771841132,-800.0,0.00046236,2]
[321016485,1711771841142,-2332.71987441,0.00046238,2]
[321016486,1711771841151,-150.0,0.000463,8]
[321016487,1711771841161,-200.0,0.00046366,2]
[321016488,1711771841170,-820.64,0.0004643,120]
[321016489,1711771841180,-179.33218432,0.00046466,12]
[321016490,1711771841189,-150.0,0.000465,8]
[321016491,1711771841199,-153.72335322,0.00046575,30]
[321016492,1711771841209,-200.0,0.00046623,25]
[321016493,1711771841218,-800.0,0.00046623,25]
[321016494,1711771841228,-200.0,0.00046624,25]
[321016495,1711771841238,-800.0,0.00046624,25]
[321016496,1711771841247,-800.0,0.00046624,25]
[321016497,1711771841257,-150.0,0.00046658,2]
[321016498,1711771841266,-150.0,0.00046683,2]
[321016499,1711771841275,-150.0,0.00046683,2]
[321016500,1711771841285,-1023.0,0.00046702,5]
[321016501,1711771841298,-155.01908948,0.00046702,30]
[321016502,1711771841307,-151.31,0.00046706,2]
[321016503,1711771841316,-161.22567062,0.0004674,30]
[321016504,1711771841326,-150.0,0.000468,8]
[321016505,1711771841336,-174.46763,0.00046837,11]
[321016506,1711771841345,-1570.49948369,0.00046847,22]
[321016507,1711771841355,-7651.02,0.0004689,10]
[321016508,1711771841364,-155.01908948,0.00046898,30]
[321016509,1711771841373,-13588.6600252,0.000469,120]
[321016510,1711771841383,-3400.0,0.000469,17]
[321016511,1711771841393,-204.20423979,0.00046998,4]
[321016512,1711771841403,-164.56281682,0.00046998,4]
[321016513,1711771841413,-312.0,0.00046998,120]
[321016514,1711771841422,-966.36650142,0.00047,14]
[321016515,1711771841432,-150.0,0.00047,9]
[321016516,1711771841442,-255.02787902,0.00047,2]
[321016517,1711771841451,-332.44924131,0.00047,42]
[321016518,1711771841460,-156.1193036,0.00047071,30]
[321016519,1711771841470,-152.0,0.00047082,6]
[321016520,1711771841481,-392671.67839647,0.000471,120]
[321016521,1711771841491,-190.29,0.000471,7]
[321016522,1711771841500,-190.46,0.000471,7]
[321016523,1711771841510,-370.63,0.000471,7]
[321016524,1711771841519,-27311.38874632,0.00047112,2]
[321016525,1711771841529,-2332.71987441,0.00047179,2]
[321016526,1711771841538,-165.52512877,0.00047182,30]
[321016527,1711771841547,-150.0,0.000473,9]
[321016528,1711771841557,-155.57,0.00047413,2]
[321016529,1711771841566,-332.44924128,0.00047445,42]
[321016530,1711771841576,-155.34840068,0.00047446,30]
[321016531,1711771841586,-570.2,0.00047465,2]
[321016532,1711771841595,-150.0,0.000475,9]
[321016533,1711771841604,-155.58,0.00047596,2]
[321016534,1711771841613,-150.0,0.00047596,2]
[321016535,1711771841622,-150.0,0.00047596,2]
[321016536,1711771841632,-155.19141178,0.00047739,36]
[321016537,1711771841641,-850.665,0.00047787,2]
[321016538,1711771841651,-962.0,0.00047787,2]
[321016539,1711771841660,-458.0,0.00047787,2]
[321016540,1711771841670,-575.232,0.00047787,2]
[321016541,1711771841679,-1226.0,0.00047787,2]
[321016542,1711771841689,-537.0,0.00047787,2]
[321016543,1711771841698,-433.0,0.00047787,2]
[321016544,1711771841707,-279.0,0.00047787,2]
[321016545,1711771841716,-605.0,0.00047787,2]
[321016546,1711771841726,-1268.0,0.00047787,2]
[321016547,1711771841735,-803.0,0.00047787,2]
[321016548,1711771841744,-2984.0,0.00047787,2]
[321016549,1711771841753,-396.0,0.00047787,2]
[321016550,1711771841762,-150.0,0.00047787,2]
[321016551,1711771841771,-2426.0,0.00047787,2]
[321016552,1711771841781,-1628.0,0.00047787,2]
[321016553,1711771841790,-150.0,0.00047787,2]
[321016554,1711771841799,-213.0,0.00047787,2]
[321016555,1711771841808,-150.0,0.00047787,2]
[321016556,1711771841817,-190.29,0.000478,7]
[321016557,1711771841826,-150.0,0.000478,9]
[321016558,1711771841836,-190.46,0.000478,7]
[321016559,1711771841845,-370.63,0.000478,7]
[321016560,1711771841855,-1570.49948369,0.00047836,23]
[321016561,1711771841865,-332.44924128,0.0004789,43]
[321016562,1711771841875,-159.73622369,0.000479,2]
[321016563,1711771841885,-173.98362341,0.000479,2]
[321016564,1711771841894,-150.0,0.00047961,2]
[321016565,1711771841904,-150.0,0.00047961,2]
[321016566,1711771841913,-150.0,0.00047961,2]
[321016567,1711771841923,-150.0,0.00047961,2]
[321016568,1711771841933,-150.0,0.0004797,7]
[321016569,1711771841943,-1539.352835,0.00048,120]
[321016570,1711771841953,-99920.03369447,0.00048,30]
[321016571,1711771841963,-1000.0,0.00048,7]
[321016572,1711771841972,-150.0,0.00048,9]
[321016573,1711771841982,-692.33706181,0.00048,2]
[321016574,1711771841992,-155.0,0.00048,15]
[321016575,1711771842002,-210.08888889,0.00048,120]
[321016576,1711771842011,-1926.47084456,0.00048019,2]
[321016577,1711771842020,-156.96928883,0.00048019,2]
[321016578,1711771842030,-5623.78111989,0.00048019,2]
[321016579,1711771842040,-956.37209737,0.00048039,2]
[321016580,1711771842049,-27311.38874632,0.00048041,2]
[321016581,1711771842059,-150.0,0.00048098,7]
[321016582,1711771842069,-12927.03737161,0.00048119,7]
[321016583,1711771842078,-2332.71987441,0.00048119,2]
[321016584,1711771842087,-150.0,0.00048126,7]
[321016585,1711771842097,-255.11290707,0.00048135,120]
[321016586,1711771842106,-150.0,0.00048164,7]
[321016587,1711771842116,-5687.0,0.00048187,2]
[321016588,1711771842296,-43018.0,0.00048187,2]
[321016589,1711771842308,-4777.0,0.00048187,2]
[321016590,1711771842317,-2452.0,0.00048187,2]
[321016591,1711771842327,-1048.0,0.00048187,2]
[321016592,1711771842337,-193.44,0.00048235,2]
[321016593,1711771842346,-152.0,0.00048239,7]
[321016594,1711771842356,-1332.6,0.00048265,120]
[321016595,1711771842365,-1258.0,0.00048295,5]
[321016596,1711771842374,-190.29,0.000483,7]
[321016597,1711771842383,-150.0,0.000483,9]
[321016598,1711771842393,-190.46,0.000483,7]
[321016599,1711771842402,-370.63,0.000483,7]
[321016600,1711771842411,-150.0,0.00048305,7]
[321016601,1711771842421,-158.85608617,0.00048323,30]
[321016602,1711771842431,-332.44924128,0.00048335,44]
[321016603,1711771842439,-242.243544,0.00048391,30]
[321016604,1711771842449,-242.243544,0.00048391,30]
[321016605,1711771842458,-670.0,0.00048438,30]
[321016606,1711771842467,-540.0,0.00048438,30]
[321016607,1711771842476,-551.0,0.00048438,30]
[321016608,1711771842486,-458.926146,0.0004845,2]
[321016609,1711771842495,-150.0,0.00048466,7]
[321016610,1711771842505,-156.1193036,0.00048481,30]
[321016611,1711771842515,-150.0,0.000485,9]
[321016612,1711771842525,-162.76395338,0.00048501,30]
[321016613,1711771842534,-210.08888889,0.00048603,120]
[321016614,1711771842543,-206.04510296,0.00048614,7]
[321016615,1711771842553,-5000.0,0.0004867,2]
[321016616,1711771842562,-150.0,0.00048683,7]
[321016617,1711771842571,-1024.0,0.000487,117]
[321016619,1711771842581,-4200.0,0.000487,17]
[321016621,1711771842590,-157.033011,0.00048738,82]
[321016623,1711771842600,-157.033011,0.00048758,83]
[321016626,1711771842609,-422.43842657,0.0004876,2]
[321016628,1711771842618,-500.0,0.00048767,9]
[321016630,1711771842627,-500.0,0.00048767,9]
[321016632,1711771842636,-500.0,0.00048767,9]
[321016634,1711771842646,-500.0,0.00048767,9]
[321016636,1711771842655,-500.0,0.00048767,9]
[321016638,1711771842665,-500.0,0.00048767,9]
[321016640,1711771842674,-500.0,0.00048767,9]
[321016642,1711771842684,-512.45511828,0.00048767,9]
[321016645,1711771842693,-6381.24,0.00048767,9]
[321016648,1711771842702,-6381.24,0.00048767,9]
[321016651,1711771842712,-6381.24,0.00048767,9]
[321016654,1711771842721,-6381.24,0.00048767,9]
[321016658,1711771842730,-6381.24,0.00048767,9]
[321016661,1711771842739,-6381.24,0.00048767,9]
[321016664,1711771842748,-6381.24,0.00048767,9]
[321016668,1711771842758,-6381.24,0.00048767,9]
[321016671,1711771842767,-6381.24,0.00048767,9]
[321016674,1711771842777,-6381.24,0.00048767,9]
[321016676,1711771842786,-6381.24,0.00048767,9]
[321016678,1711771842796,-6381.24,0.00048767,9]
[321016681,1711771842806,-6381.24,0.00048767,9]
[321016684,1711771842815,-6381.24,0.00048767,9]
[321016686,1711771842824,-6381.24,0.00048767,9]
[321016689,1711771842834,-6381.24,0.00048767,9]
[321016692,1711771842843,-199.28821863,0.0004877,3]
[321016695,1711771842854,-74035.0,0.0004877,23]
[321016697,1711771842863,-157.033011,0.00048778,84]
[321016700,1711771842873,-179.33218432,0.0004878,13]
[321016702,1711771842882,-173.29086928,0.0004878,13]
[321016703,1711771842900,-332.44924128,0.0004878,44]
[321016705,1711771842909,-157.033011,0.00048798,85]
[321016707,1711771842918,-150.0,0.000488,120]
[321016709,1711771842928,-6142.69598584,0.000488,120]
[321016710,1711771842937,-158.0,0.000488,2]
[321016711,1711771842946,-270.0,0.000488,2]
[321016712,1711771842955,-174.24,0.000488,10]
[321016713,1711771842965,-190.29,0.000488,7]
[321016714,1711771842974,-268.68,0.000488,120]
[321016715,1711771842983,-150.0,0.000488,9]
[321016716,1711771842993,-800.0,0.000488,17]
[321016717,1711771843002,-190.46,0.000488,7]
[321016718,1711771843012,-370.63,0.000488,7]
[321016719,1711771843021,-14639.95,0.000488,45]
[321016720,1711771843030,-1494.0,0.000488,30]
[321016721,1711771843039,-150.0,0.00048813,7]
[321016722,1711771843048,-6381.24,0.00048813,9]
[321016723,1711771843058,-11786.4088937,0.00048814,2]
[321016724,1711771843067,-17624.086761,0.00048814,2]
[321016725,1711771843076,-157.033011,0.00048818,86]
[321016726,1711771843086,-500.0,0.00048819,9]
[321016727,1711771843096,-500.0,0.00048819,9]
[321016728,1711771843105,-500.0,0.00048819,9]
[321016729,1711771843114,-500.0,0.00048819,9]
[321016730,1711771843124,-500.0,0.00048819,9]
[321016731,1711771843133,-500.0,0.00048819,9]
[321016732,1711771843142,-100000.0,0.0004882,17]
[321016733,1711771843151,-210.7929301,0.00048822,7]
[321016734,1711771843161,-1570.49948369,0.00048824,25]
[321016735,1711771843170,-53000.0,0.00048827,14]
[321016736,1711771843179,-500.0,0.00048829,9]
[321016737,1711771843189,-6381.24,0.00048829,9]
[321016738,1711771843198,-85705.56,0.0004883,10]
[321016739,1711771843207,-150.5,0.0004883,15]
[321016740,1711771843216,-157.033011,0.00048838,87]
[321016741,1711771843225,-56875.55,0.0004884,4]